{"text_format":"1","workbook":"xlsx","n_sheets":1,"sheets":["ورقة1"],"not_rendered":{"charts":0,"images":0,"macros":1,"external_links":0,"defined_names":0,"comments":0,"pivot_tables":0},"unopened":[],"bounds":{"document_bytes":16777216,"sheet_cells":100000,"rows_first":2000,"rows_last":500,"rows_between":2000,"halvings":0,"cell_chars":16384,"cell_head_chars":4096},"cells_cut":0,"cells_raw":0,"read":"whole","date_system":"1900"}

{"sheet":"ورقة1","index":0,"n_rows":27,"n_cols":4,"rows_kept":27,"cut":false,"hidden":false,"merged":[[0,1,1,10]]}
[null,"المطلوب لطفا معادلة في نفس الورقة تعمل على تحويل الرقم في خلية A6 ولغاية A27 الى حروف من B6 ولغاية B27 وتظهر نتيجة المعادلة في خلية D9"]
[]
[]
["الحدث قبل المعادلة","الحدث بعد المعادلة"]
["الرقم ","بالحروف "]
[1,"الاولى",{"$f":"NoToTxt(A6,\"\",\"\")","v":"الأولى "}]
[2,"الثانية",{"$f":"NoToTxt(A7,\"\",\"\")","v":"الثانية "}]
[3,"الثالثة","الثالثة ","خلية تنفيذ الحدث"]
[4,"الرابعة","الرابعة ","هنا نتيجة المعادلة"]
[5,"الخامسة","الخامسة "]
[6,"السادسة ","السادسة "]
[7,"السابعة ","السابعة "]
[8,"الثامنة ","الثامنة "]
[9,"التاسعة","التاسعة "]
[10,"العاشرة ","العاشرة "]
[11,"الحادية عشر","الحادية عشر "]
[12,"الثانية عشر","الثانية عشر "]
[13,"الثالثة عشر ","الثالثة عشر "]
[14,"الرابعة عشر ","الرابعة عشر "]
[15,"الخامسة عشر","الخامسة عشر "]
[16,"السادسة عشر ","السادسة عشر "]
[17,"السابعة عشر  ","السابعة عشر "]
[18,"الثامنة عشر","الثامنة عشر "]
[19,"التاسعة عشر","التاسعة عشر "]
[20,"العشرون ","العشرون "]
[21,"الواحدة والعشرون ","الواحد والعشرون "]
[22,"الثانية والعشرون","الثانية والعشرون "]